Cogmind - Beta 14 @@@ ROGUE MODE // 2024.08.08 @ 19:11:33 Player: Sam Result: Self-destructed Performance ------------- Evolutions (1) 500 Regions Visited (3) 600 Robots Destroyed (15) 75 Value Destroyed (624) 624 Prototype IDs (0) 0 Alien Tech Used (0) 0 Bonus (0) 0 TOTAL SCORE: 1799 Bonus ------- None Cogmind --------- Core Integrity 287/400 Matter 217/300 Energy 100/100 System Corruption 0% Temperature Cool (4) Movement Core (400) Ox7 Location -9/Materials Parts ------- > --- POWER (1) -------- (None) > --- PROPULSION (4) --- Airjet > --- UTILITY (2) ------ Reactive Plating > --- WEAPON (2) ------- Shock Bomb Launcher Shock Bomb Launcher > --- INVENTORY (5) ---- Small Laser Welding Torch Peak State ------------ > --- POWER ------------ Light Nuclear Core > --- PROPULSION ------- Airjet Airjet Airjet Airjet > --- UTILITY ---------- Cryofiber Web Reactive Plating > --- WEAPON ----------- Shock Bomb Launcher Shock Bomb Launcher > --- INVENTORY -------- Small Laser Welding Torch [Rating: 27] Favorites ----------- Power Light Nuclear Core Engine Improved Ion Engine Power Core Light Nuclear Core Propulsion Aluminum Leg Leg Aluminum Leg Hover Unit Airjet Utility Cryofiber Web Device Cryofiber Web Protection Medium Armor Plating Weapon Medium Laser Energy Gun Medium Laser Energy Cannon Light EM Pulse Cannon Ballistic Gun Assault Rifle Launcher Shock Bomb Launcher Build | -11 -10 -10 -9 ------- Run | Yrd Mat Min Mat Slots Evolved 2 | . . . 2 Power . | . . . . Propulsion 2 | . . . 2 Utility . | . . . . Weapon . | . . . . Parts Attached 31 | 4 2 . 25 Power 3 | . 1 . 2 Engine 1 | . . . 1 Core 2 | . 1 . 1 Reactor . | . . . . Propulsion 17 | 2 . . 15 Treads . | . . . . Leg 9 | 2 . . 7 Wheel . | . . . . Hover 8 | . . . 8 Flight . | . . . . Utility 4 | . . . 4 Device 2 | . . . 2 Storage . | . . . . Processor . | . . . . Hackware . | . . . . Protection 2 | . . . 2 Artifact . | . . . . Weapon 7 | 2 1 . 4 Energy Gun 3 | 1 1 . 1 Energy Cannon 1 | . . . 1 Ballistic Gun 1 | 1 . . . Ballistic Cannon . | . . . . Launcher 2 | . . . 2 Special Weapon . | . . . . Impact Weapon . | . . . . Slashing Weapon . | . . . . Piercing Weapon . | . . . . Special Melee Weapon . | . . . . Unidentified Prototypes . | . . . . Parts Lost 9 | . 1 . 8 Power 1 | . . . 1 Propulsion 4 | . . . 4 Utility 1 | . . . 1 Weapon 3 | . 1 . 2 Highest Loss Streak 4 | . 1 . 4 To Critical Strikes . | . . . . Average Slot Usage (%) 76 | . 58 71 81 Core 7 | . 4 14 7 Leg 22 | . 28 28 20 Hover 10 | . . . 13 Device 8 | . . . 11 Protection 5 | . . . 7 Energy Gun 10 | . 12 14 10 Energy Cannon 1 | . . . 2 Ballistic Gun 4 | . 14 14 1 Launcher 4 | . . . 6 Peak Build Rating 27 | 4 7 7 27 Average Rating 12 | 2 4 7 14 On Entrance 4 | . 4 7 7 Naked Turns . | . . . . Heaviest Build 28 | 4 9 9 28 Greatest Support 40 | 20 20 20 40 Greatest Overweight (x) 7 | . . . 7 Average Overweight (x) . | . . . . Largest Inventory Capacity 5 | 5 5 5 5 Average Capacity 5 | 5 5 5 5 Most Carried 5 | 4 2 . 5 Average Carried 1 | . . . 2 Final Capacity 5 | 5 5 5 5 Final Carried 2 | . . . 2 Class Distribution -------------------- 93% | Mutant 6% | Scavenger-Mutant Dominant Class ---------------- Mutant | -10/Materials Mutant | -10/Mines Mutant | -9/Materials Resources | -11 -10 -10 -9 ----------- Run | Yrd Mat Min Mat Matter Collected 508 | 239 76 . 193 Remotely . | . . . . Salvage Created 702 | . 135 . 567 Parts 33 | . 7 . 26 Haulers Intercepted . | . . . . Recyclers Shooed . | . . . . Parts Field Recycled . | . . . . Retrieved Matter . | . . . . Parts Self-Destructed . | . . . . Prevented . | . . . . Kills | -11 -10 -10 -9 ------- Run | Yrd Mat Min Mat Combat Hostiles Destroyed 14 | . 3 . 11 Guns 9 | . 3 . 6 Cannons 3 | . . . 3 AOE 2 | . . . 2 Classes Destroyed 3 | . 1 . 2 Builder 1 | . . . 1 Grunt 10 | . 3 . 7 Sentry 4 | . . . 4 Best Kill Streak 3 | . 1 . 3 Combat Bots Only 3 | . 1 . 3 Max Kills in Single Turn 1 | . 1 . 1 Gunslinging . | . . . . Exploded 1 | . . . 1 Melee . | . . . . Uniques/NPCs Destroyed . | . . . . Combat | -11 -10 -10 -9 -------- Run | Yrd Mat Min Mat Hostile Shots Fired 146 | . 34 . 112 Missed 47 | . 10 . 37 Damage Taken 1353 | . 311 . 1042 Core 208 | . 95 . 113 Absorbed by Shields . | . . . . Ignored by Resistances 28 | . . . 28 Core Remaining (%) 81 | 100 . 62 . Volleys Fired 60 | . 20 . 40 Largest 2 | . 2 . 2 Hottest 115 | . 70 . 115 Shots Fired 93 | . 28 . 65 Gun 74 | . 28 . 46 Cannon 10 | . . . 10 Launcher 9 | . . . 9 Special . | . . . . Kinetic 27 | . 20 . 7 Thermal 43 | . 4 . 39 Explosive . | . . . . Electromagnetic 23 | . 4 . 19 Robot Hit Streak 30 | . 5 . 30 Robot Miss Streak 3 | . 2 . 3 Penetration Max . | . . . . Secondary Targets . | . . . . Shots Hit Robots 68 | . 17 . 51 Core Hits 30 | . 7 . 23 Critical Kills . | . . . . Critical Parts Destroyed . | . . . . Critical Strikes 4 | . . . 4 Burn 4 | . . . 4 Melee Attacks . | . . . . Impact . | . . . . Slashing . | . . . . Piercing . | . . . . Sneak Attacks . | . . . . Combat Hostiles . | . . . . Follow-up Attacks . | . . . . Damage Inflicted 1151 | . 207 . 944 Guns 710 | . 204 . 506 Cannons 207 | . . . 207 Explosions 231 | . . . 231 Melee . | . . . . Ramming 3 | . 3 . . Kinetic 238 | . 165 . 73 Thermal 459 | . 26 . 433 Explosive . | . . . . Electromagnetic 451 | . 13 . 438 Impact . | . . . . Slashing . | . . . . Piercing . | . . . . Highest Corruption . | . . . . Average Corruption . | . . . . Corruption Purged . | . . . . Corruption Blocked . | . . . . Overload Shots . | . . . . Overflow Damage . | . . . . Projectiles . | . . . . Explosions . | . . . . Melee . | . . . . Knockbacks . | . . . . Impact . | . . . . Kinetic . | . . . . Secondary . | . . . . Self-Inflicted Damage 25 | . . . 25 Shots 3 | . . . 3 Rammed . | . . . . Targets Rammed 1 | . 1 . . Kicked 1 | . 1 . . Crushed . | . . . . Highest Temperature 158 | . 84 . 158 Average Temperature 43 | . 32 . 46 Received Heat Transfer 807 | . 201 . 606 Siege Activations . | . . . . Robots Corrupted . | . . . . Combat Hostiles . | . . . . Parts Fried 7 | . . . 7 Impact Corruptions . | . . . . Robots Melted . | . . . . Combat Hostiles . | . . . . Parts Melted 8 | . . . 8 Heat Transferred 1591 | . 74 . 1517 Parts Sabotaged . | . . . . Parts Stolen . | . . . . Parts Stripped . | . . . . Power Chain Reactions 1 | . . . 1 Alert | -11 -10 -10 -9 ------- Run | Yrd Mat Min Mat Peak Influence 240 | . 101 39 240 Initial 39 | . . 39 14 Average 100 | . 27 39 130 Maximum Alert Level 1 | . . . 1 Low Security (%) 84 | 100 100 100 77 Level 1 15 | . . . 22 Level 2 . | . . . . Level 3 . | . . . . Level 4 . | . . . . Level 5 . | . . . . High Security . | . . . . Max Security . | . . . . Squads Dispatched 3 | . 2 . 1 Investigation . | . . . . Extermination . | . . . . Reinforcement 3 | . 2 . 1 Assault . | . . . . Garrison . | . . . . Intercept . | . . . . Searches Triggered . | . . . . Construction Impeded . | . . . . Haulers Reinforced . | . . . . Active Scanning Responses . | . . . . Cargo Convoy Interrupts . | . . . . Stealth | -11 -10 -10 -9 --------- Run | Yrd Mat Min Mat Distress Signals 3 | . 2 . 1 Communications Jammed . | . . . . Distress Signals . | . . . . Times Spotted 24 | . 8 . 16 Peak Tracking Total 3 | . 3 . 3 Tactical Retreats 2 | . . . 2 Traps | -11 -10 -10 -9 ------- Run | Yrd Mat Min Mat Traps Triggered . | . . . . Indirectly . | . . . . Trap Hack Attempts . | . . . . Triggered . | . . . . Disarmed . | . . . . Reprogrammed . | . . . . Reused . | . . . . Traps Extracted . | . . . . Installed . | . . . . Triggered . | . . . . Machines | -11 -10 -10 -9 ---------- Run | Yrd Mat Min Mat Machines Disabled 6 | . . . 6 Max in Single Turn 2 | . . . 2 Machines Repaired . | . . . . Machines Dismantled . | . . . . Machines Sabotaged . | . . . . Overloaded Fab Kills . | . . . . Hacking | -11 -10 -10 -9 --------- Run | Yrd Mat Min Mat Machines Accessed . | . . . . Terminals . | . . . . Fabricators . | . . . . Repair Stations . | . . . . Recycling Units . | . . . . Scanalyzers . | . . . . Garrison Access . | . . . . Total Hacks . | . . . . Successful . | . . . . Failed . | . . . . Catastrophic . | . . . . Database Lockouts . | . . . . Manual . | . . . . Terminals . | . . . . Fabricators . | . . . . Repair Stations . | . . . . Recycling Units . | . . . . Scanalyzers . | . . . . Garrison Access . | . . . . Terminal Hacks . | . . . . Fabricator Hacks . | . . . . Repair Station Hacks . | . . . . Recycling Unit Hacks . | . . . . Scanalyzer . | . . . . Garrison Access Hacks . | . . . . Unauthorized Hacks . | . . . . Terminals . | . . . . Fabricators . | . . . . Repair Stations . | . . . . Recycling Units . | . . . . Scanalyzers . | . . . . Garrison Access . | . . . . Data Cores Recovered . | . . . . Used . | . . . . Hacking Detections . | . . . . Full Trace Events . | . . . . Feedback Events . | . . . . Feedback Blocked . | . . . . Robot Schematics Acquired . | . . . . Robots Built . | . . . . Authchips . | . . . . Time . | . . . . Total Robot Build Rating . | . . . . Part Schematics Acquired . | . . . . Parts Built . | . . . . Authchips . | . . . . Time . | . . . . Total Part Build Rating . | . . . . Parts Repaired . | . . . . Time . | . . . . Parts Recycled . | . . . . Recycled Matter . | . . . . Retrieved Matter . | . . . . Retrieved Components . | . . . . Parts Scanalyzed . | . . . . Part Schematics Acquired . | . . . . Parts Damaged . | . . . . Bothacking | -11 -10 -10 -9 ------------ Run | Yrd Mat Min Mat Used RIF Installer . | . . . . Robots Hacked . | . . . . Non-combat . | . . . . Combat . | . . . . Robot Hacks Applied . | . . . . Relay Couplers Released . | . . . . Fabnet Peak Effective % . | . . . . Robots Rewired . | . . . . Allies Hacked . | . . . . Hacks Repelled . | . . . . Allies | -11 -10 -10 -9 -------- Run | Yrd Mat Min Mat Total Allies . | . . . . Largest Group . | . . . . Highest-Rated Group . | . . . . Highest-Rated Ally . | . . . . Total Orders . | . . . . Ally Attacks . | . . . . Total Damage . | . . . . Kills . | . . . . Allies Corrupted . | . . . . Allies Melted . | . . . . Intel | -11 -10 -10 -9 ------- Run | Yrd Mat Min Mat Robot Analysis Total . | . . . . Derelict Logs Recovered . | . . . . Drone Launches . | . . . . Drone Recoveries . | . . . . Exploration | -11 -10 -10 -9 ------------- Run | Yrd Mat Min Mat Turns Passed 1170 | 55 204 77 834 Spaces Moved 767 | 53 126 65 523 Core 39 | 28 . . 11 Treads . | . . . . Legs 541 | 25 126 65 325 Wheels . | . . . . Hover 187 | . . . 187 Flight . | . . . . Fastest Speed 48 | 50 120 120 48 Average Speed 116 | 83 120 120 118 Slowest Speed 400 | 120 120 120 400 Overloaded Moves . | . . . . Propulsion Burnouts . | . . . . Robots Hopped . | . . . . Cave-ins Triggered . | . . . . Exploration Rate (%) 16 | 3 26 11 26 Regions Visited 3 Branch Regions 1 Pre-discovered Areas . | . . . . Known Exits Taken . | . . . . Unknown Exits Taken 3 | 1 1 1 . Scrap Searched . | . . . . Spaces Dug 36 | . . . 36 Terrain Destroyed 39 | . . . 39 Melee . | . . . . Projectile . | . . . . AOE 39 | . . . 39 Terrain Rammed . | . . . . Walls Destroyed . | . . . . Machines Disabled . | . . . . Actions | -11 -10 -10 -9 --------- Run | Yrd Mat Min Mat Total 957 | 64 150 64 679 Wait 59 | 4 . . 55 Move 764 | 52 125 64 523 Hop . | . . . . Pick Up 24 | 4 2 . 18 Fast Attach 9 | . . . 9 Attach 22 | 4 2 . 16 Detach . | . . . . Swap . | . . . . Drop 18 | . . . 18 Fire 60 | . 20 . 40 Melee . | . . . . Ram . | . . . . Kick 1 | . 1 . . Crush . | . . . . Escape Stasis . | . . . . Rewire . | . . . . Trap . | . . . . Miscellaneous . | . . . . Route ------- -11/Scrapyard -10/Materials -10/Mines -9/Materials History --------- Turn | Location | Event 5 | -11/Scrapyard | Discovered new exit (range 16) 56 | -11/Scrapyard | Entered Materials 150 | -10/Materials | Discovered new exit (range 13) 260 | -10/Materials | Entered Mines 260 | -10/Mines | Discovered new exit (range 6) 266 | -10/Mines | YI-UF0 nonchalantly dropped a Grenade Launcher on the ground 306 | -10/Mines | Build established: Mutant 337 | -10/Mines | Entered Materials 337 | -9/Materials | Evolved 2 slots: Propulsion x2 1171 | -9/Materials | Self-destructed Last Messages --------------- U-05 Engineer sends out distress signal. M-13 Machinist repairs Welding Torch. Terrain Scan Processor fried. Welding Torch fried. Wheel fried. Terrain Scanner fried. U-05 Engineer destroyed. Door malfunctions. Acquired 30 matter. Critical hit (Burn: +37). Airjet destroyed. G-34 Mercenary misfires. Ion Engine fried. G-34 Mercenary destroyed. Airjet destroyed. K-01 Serf collects debris. Cryofiber Web destroyed. Critical hit (Burn: +37). Airjet destroyed. Critical hit (Burn: +37). Map ----- +----------------------------------------------------+ | | | | | | | | | | | | | | | | | | | ?????????????????????????????????????????????????? | | ??????########????????? ?????????????????????????? | | ??????# =!!] #????????"""????????#???????????????? | | ####### ! ]#????????"""??????? ???????????????? | | ## #????????"""?????? ""???????????????? | | / ! ## ####????? ?????? """ #????????????? | | + // ##???##;###### """ +????????????? | | #### / "#???# + #????????????? | | " #??# T#???# #;;;; ]?????????????? | | #??# "#???# ;;;;;;;;##??????????????? | | #??# ##???# ;; ;#??????????????? | | #??# ###?## ;; ;#??????????????? | | /######## " #?# ; ;#??????????????? | | " ###Y ; ;#??????????????? | | !; ;#??????????????? | | ! ### ; ##??????????????? | | ########## #?# g@;;;;;;;#???????????????? | | #????????#######?### ##; ###???????????????? | | ##??????????????????# #?######?????????????????? | | #?????????########### #????????????????????????? | | #?????????# ## #????????????????????????? | | +?????????# """ ## #????????????????????????? | | #?????????# """ ## #######??????????????????? | | #?????????# """!# #??????????????????? | | #?????????# + % #####??????????????? | | #?????????# """%# !!#??????????????? | | ??????????# ! """ ### !!#??????????????? | | ??????????# """ #?# !!#??????????????? | | ??????????# #?# !!#??????????????? | | ??????????##########?# !!#??############# | | ????????????????????#### !#??# %% [%=+ | | ????????????????????+ %######## """""=# | | ????????????????????# ## # """"" # | | ???????????????# # # """"" + | | ???????????????# / + """"" #### | | ???????????????# ####### # """"" #??? | | ???????????????# ??????###### # """"" #??? | | ???????????????# ????????????## ## """"" #??? | | ???????????????+ ??????????????# ## #??? | | ????????????????????????????????#% ^###########??? | | ????????????????????????????????# #????????????? | +----------------------------------------------------+ Best States ------------- Heat Dissipation 48 Energy Generation 14 Energy Capacity 265 Matter Stores 300 Matter Capacity 300 Sight Range 16 Terrain Scan Density 10 Base Temperature (-) 100 Armor Coverage 225 Resistance: KI 20 Evasion (%) 55 Item Schematics ----------------- None Robot Schematics ------------------ None Fabricated ------------ Nothing Alien Tech Used ----------------- None Achievements -------------- None Challenges ------------ None Game ------ Seed SpectralEnhancedBoomstick Manual? 0 Play Time 00:13:34 Cumulative 2.2 hours Start 2024.08.08 @ 18:58:14 End 2024.08.08 @ 19:11:33 Sessions 1 Manual Loads 0 Difficulty Rogue Special Mode None Game No. 10 Rogue 10 Adventurer 0 Explorer 0 Win Type - Total 0 Types 0/0/0/0/0/0/0/0/0 Lore% 2 Gallery% 8 Achievement% 6 Wizard Run 0 Options --------- Layout 1 ASCII 1 Keyboard 1 Movement Numpad Keybinds 0 Fullscreen 2 Font 24/X11 Map View 50x35 Zoom Use 0% Tactical HUD 0 Map Filters NONE Filters NONE Steam 1 RUN: 07037c6a-d3d2-4573-80d2-22b2327f609c